bitfinex/quotes_BTCUSD_20250716
["timestamp","ask_amount","ask_price","bid_price","bid_amount"]
[1752631195882,0.20814054,117850.0,117840.0,0.78636911]
[1752631196646,0.20814054,117850.0,117840.0,0.7778831]
[1752631197020,0.55438485,117850.0,117840.0,0.30505155]
[1752631197164,0.55438485,117850.0,117840.0,0.43681155]
[1752631198199,0.55438485,117850.0,117840.0,0.61501928]
[1752631198405,0.20814054,117850.0,117840.0,0.62350529]
[1752631198743,0.20814054,117850.0,117840.0,0.44529763]
[1752631198876,0.20814054,117850.0,117840.0,0.67906823]
[1752631199094,0.20814054,117850.0,117840.0,0.50934658]
[1752631199308,0.20814054,117850.0,117840.0,0.13741155]
[1752631200418,0.20814054,117850.0,117840.0,0.43681155]
[1752631202875,0.20814054,117850.0,117840.0,0.30505155]
[1752631203078,0.55438485,117850.0,117840.0,0.43665155]
[1752631205291,0.55438485,117850.0,117840.0,0.13725155]
[1752631205509,0.55438485,117850.0,117840.0,0.16971432]
[1752631206577,0.20814054,117850.0,117840.0,0.16971432]
[1752631208066,0.20814054,117850.0,117840.0,0.16975432]
[1752631209364,0.21662554,117850.0,117840.0,0.3070132]
[1752631209571,0.21662554,117850.0,117840.0,0.77470109]
[1752631209572,0.008858,117850.0,117840.0,0.77470109]
[1752631209760,0.01734293,117850.0,117840.0,0.80833109]
[1752631209983,0.025828,117850.0,117840.0,0.80833109]
[1752631210618,0.01734293,117850.0,117840.0,0.80833109]
[1752631210822,0.01734293,117850.0,117840.0,0.89409071]
[1752631211037,0.025828,117850.0,117840.0,0.89409071]
[1752631211242,0.01734293,117850.0,117840.0,1.17839071]
[1752631212121,0.00037329,117850.0,117840.0,1.17839071]
[1752631212528,0.008858,117850.0,117840.0,1.09263109]
[1752631212737,0.00037329,117850.0,117840.0,1.10803109]
[1752631213771,0.00037329,117850.0,117840.0,1.12257194]
[1752631213946,0.00037329,117850.0,117840.0,1.13092357]
[1752631215133,0.00037329,117850.0,117840.0,1.12257194]
[1752631215291,0.00037329,117850.0,117840.0,1.20833156]
[1752631216880,0.00037329,117850.0,117840.0,1.21681458]
[1752631217099,0.00037329,117850.0,117840.0,1.20833156]
[1752631217513,0.008858,117850.0,117840.0,1.20833156]
[1752631217736,0.00037329,117850.0,117840.0,1.20833156]
[1752631217972,0.00037329,117850.0,117840.0,0.86208725]
[1752631218150,0.00037329,117850.0,117840.0,1.20833156]
[1752631219462,0.00037329,117850.0,117840.0,1.21678788]
[1752631220115,0.01696834,117860.0,117840.0,1.21678788]
[1752631220116,0.01685677,117860.0,117850.0,0.19516246]
[1752631220258,0.01685677,117860.0,117850.0,0.83442679]
[1752631220474,0.00837249,117860.0,117850.0,0.83442679]
[1752631220663,0.05040676,117870.0,117860.0,0.19514583]
[1752631220874,0.05575046,117870.0,117860.0,0.33713996]
[1752631221074,0.56191167,117880.0,117870.0,0.17816237]
[1752631221282,0.56389167,117880.0,117870.0,0.54443052]
[1752631221683,0.05418589,117880.0,117870.0,0.56139756]
[1752631221885,0.02544902,117880.0,117870.0,0.56338756]
[1752631222432,0.00848262,117880.0,117870.0,0.69574215]
[1752631222639,0.552872,117890.0,117880.0,0.17814719]
[1752631222844,0.55500402,117890.0,117880.0,0.3285593]
[1752631223076,0.56349169,117890.0,117880.0,0.3370425]
[1752631223309,0.56349169,117890.0,117880.0,0.34552563]
[1752631223718,0.56349169,117890.0,117880.0,0.13152]
[1752631223925,0.56449169,117890.0,117880.0,0.14352]
[1752631224523,0.56449169,117890.0,117880.0,0.13152]
[1752631224751,0.56349169,117890.0,117880.0,0.30118406]
[1752631224963,0.55600936,117890.0,117880.0,0.13852]
[1752631225170,0.55600936,117890.0,117880.0,0.30818406]
[1752631225477,0.55600936,117890.0,117880.0,0.13852]
[1752631226236,0.55600936,117890.0,117880.0,0.31666726]
[1752631226446,0.21600936,117890.0,117880.0,0.31666726]
[1752631227958,0.21600936,117890.0,117880.0,0.34098628]
[1752631228160,0.21600936,117890.0,117880.0,0.34946941]
[1752631228369,0.21600936,117890.0,117880.0,0.35795246]
[1752631228568,0.21600936,117890.0,117880.0,0.34946941]
[1752631229192,0.21600936,117890.0,117880.0,0.34098628]
[1752631229895,0.21600936,117890.0,117880.0,0.31666726]
[1752631230108,0.21600936,117890.0,117880.0,0.13852]
[1752631231901,0.21600936,117890.0,117880.0,0.43792]
[1752631232447,0.21600936,117890.0,117880.0,0.61606726]
[1752631232586,0.21600936,117890.0,117880.0,0.4464032]
[1752631233211,0.21600936,117890.0,117880.0,0.43792]
[1752631236720,0.56225367,117890.0,117880.0,0.43792]
[1752631237224,0.21600936,117890.0,117880.0,0.43792]
[1752631238196,0.56225367,117890.0,117880.0,0.43792]
[1752631239019,0.56225367,117890.0,117880.0,0.3064]
[1752631239234,5.05216967,117890.0,117880.0,0.43788]
[1752631241332,5.69491957,117890.0,117880.0,0.3064]
[1752631241550,5.95540426,117890.0,117880.0,0.3064]
[1752631241760,5.98136973,117890.0,117880.0,0.3064]
[1752631242386,5.28888111,117890.0,117880.0,0.3064]
[1752631242587,5.95540426,117890.0,117880.0,0.3064]
[1752631243162,5.95440426,117890.0,117880.0,0.2994]
[1752631243783,0.21824578,117870.0,117860.0,0.13148]
[1752631243988,5.19104609,117870.0,117860.0,0.13148]
[1752631244194,0.20977734,117860.0,117850.0,0.43088]
[1752631244404,5.04807765,117860.0,117850.0,0.43088]
[1752631244624,0.18672499,117820.0,117810.0,0.3317521]
[1752631244832,0.18672499,117820.0,117810.0,0.50151697]
[1752631244833,0.18886499,117820.0,117810.0,0.50151697]
[1752631245039,0.19188499,117820.0,117810.0,0.32246098]
[1752631245916,0.19188499,117820.0,117810.0,0.33102893]
[1752631246134,0.20037244,117820.0,117810.0,0.34002422]
[1752631246350,0.20885996,117820.0,117810.0,0.42582384]
[1752631246982,0.0391095,117820.0,117810.0,0.42582384]
[1752631247194,0.20985996,117820.0,117810.0,0.42782384]
[1752631248561,0.001,117820.0,117810.0,0.88773616]
[1752631248774,0.001,117820.0,117810.0,0.90283616]
[1752631250058,0.00948701,117820.0,117810.0,0.90283616]
[1752631250260,0.001,117820.0,117810.0,0.90283616]
[1752631252584,0.001,117820.0,117810.0,1.20223616]
[1752631253480,0.00083024,117820.0,117810.0,1.20223616]
[1752631257013,0.00083024,117820.0,117810.0,0.85599185]
[1752631257221,0.00083024,117820.0,117810.0,1.20223616]
[1752631262036,0.00083024,117820.0,117810.0,0.85599185]
[1752631262287,0.00083024,117820.0,117810.0,1.20223616]
[1752631264207,0.00083024,117820.0,117810.0,1.18713616]
[1752631264456,0.00083024,117820.0,117810.0,1.18406616]
[1752631264673,0.00083024,117820.0,117810.0,1.18719616]
[1752631265120,0.00083024,117820.0,117810.0,1.20309616]
[1752631265983,0.00083024,117820.0,117810.0,1.54309616]
[1752631272781,0.00083024,117820.0,117810.0,1.74124826]
[1752631274572,0.00083024,117820.0,117810.0,1.72534826]
[1752631276606,0.00083024,117820.0,117810.0,1.70874826]
[1752631276607,0.00055253,117820.0,117810.0,1.70874826]
[1752631276819,0.00055253,117820.0,117810.0,1.70561826]
[1752631277023,0.00055253,117820.0,117810.0,1.35937395]
[1752631277230,0.00055253,117820.0,117810.0,1.36341826]
[1752631277231,0.04499954,117820.0,117810.0,1.36341826]
[1752631277446,0.03651253,117820.0,117810.0,1.16730616]
[1752631278068,0.04499947,117820.0,117810.0,1.16730616]
[1752631278274,0.03651253,117820.0,117810.0,1.16730616]
[1752631278487,0.04499947,117820.0,117810.0,1.36545826]
[1752631278891,0.03480674,117820.0,117810.0,1.36545826]
[1752631279096,0.03678667,117820.0,117810.0,1.36545826]
[1752631279951,0.03678667,117820.0,117810.0,1.16730616]
[1752631280375,0.0282998,117820.0,117810.0,1.16730616]
[1752631280585,0.03565266,117830.0,117820.0,0.19521215]
[1752631280789,0.02914629,117830.0,117820.0,0.84424636]
[1752631281417,0.03763273,117830.0,117820.0,0.84424636]
[1752631281840,0.03863273,117830.0,117820.0,0.85224636]
[1752631282052,0.05363273,117830.0,117820.0,0.85224636]
[1752631282269,0.05363273,117830.0,117820.0,1.15164636]
[1752631283130,0.06211931,117830.0,117820.0,1.15164636]
[1752631283347,0.05363273,117830.0,117820.0,1.15164636]
[1752631284074,0.04514629,117830.0,117820.0,1.15368636]
[1752631284279,0.05363273,117830.0,117820.0,1.15368636]
[1752631285375,0.06211938,117830.0,117820.0,1.15368636]
[1752631285665,0.06211931,117830.0,117820.0,1.15368636]
[1752631286283,0.24034202,117830.0,117820.0,1.05739973]
[1752631286507,0.24034202,117830.0,117820.0,1.06588682]
[1752631287256,0.07060596,117830.0,117820.0,1.07437383]
[1752631288132,0.06211931,117830.0,117820.0,1.07437383]
[1752631288346,0.05363273,117830.0,117820.0,1.07437383]
[1752631288557,0.05363273,117830.0,117820.0,1.16013345]
[1752631288983,0.05363273,117830.0,117820.0,1.16217345]
[1752631289622,0.04514629,117830.0,117820.0,1.16217345]
[1752631291928,0.001,117830.0,117820.0,1.16513345]
[1752631292169,0.00948629,117830.0,117820.0,1.16513345]
[1752631292393,0.01797273,117830.0,117820.0,1.16513345]
[1752631292807,0.00948629,117830.0,117820.0,1.16513345]
[1752631293029,0.00948629,117830.0,117820.0,1.16217345]
[1752631293228,0.01797273,117830.0,117820.0,1.16217345]
[1752631293495,0.04729938,117830.0,117820.0,1.07641383]
[1752631293705,0.24152217,117830.0,117820.0,1.07437383]
[1752631294617,0.24152217,117830.0,117820.0,0.98037654]
[1752631295064,0.24152217,117830.0,117820.0,0.98886355]
[1752631295605,0.24152217,117830.0,117820.0,0.98037654]
[1752631295817,0.24152268,117830.0,117820.0,0.62564514]
[1752631296035,0.24152268,117830.0,117820.0,0.98037661]
[1752631297132,0.24152268,117830.0,117820.0,0.9888637]
[1752631297356,0.23303624,117830.0,117820.0,0.97188959]
[1752631297579,0.56230717,117830.0,117820.0,0.3074]
[1752631297805,0.58827264,117830.0,117820.0,0.008]
[1752631298044,5.22003458,117830.0,117820.0,0.008]
[1752631298268,5.23234193,117830.0,117820.0,0.008]
[1752631299175,5.57234193,117830.0,117820.0,0.008]
[1752631301021,5.56385513,117830.0,117810.0,0.30202748]
[1752631301229,5.60574842,117820.0,117810.0,0.30202748]
[1752631301435,5.60776842,117820.0,117810.0,0.30202748]
[1752631301744,5.60776842,117820.0,117810.0,0.33223023]
[1752631302185,5.60776842,117820.0,117810.0,0.30202748]
[1752631302520,1.11985242,117820.0,117810.0,0.31602748]
[1752631302727,5.60976842,117820.0,117810.0,0.31602748]
[1752631302970,5.60976842,117820.0,117810.0,0.01662748]
[1752631304497,5.17801383,117820.0,117810.0,0.01662748]
[1752631305027,0.68809783,117820.0,117810.0,0.01662748]
[1752631309608,1.03434214,117820.0,117810.0,0.01662748]
[1752631313397,5.60976842,117820.0,117810.0,0.01662748]
[1752631316988,1.14581789,117820.0,117810.0,0.01662748]
[1752631317207,5.63573389,117820.0,117810.0,0.01662748]
[1752631323173,5.60976842,117820.0,117810.0,0.01662748]
[1752631323810,5.47824842,117820.0,117810.0,0.01662748]
[1752631324029,5.13200411,117820.0,117810.0,0.01662748]
[1752631324241,5.26356411,117820.0,117810.0,0.01662748]
[1752631326616,5.24786411,117820.0,117810.0,0.01662748]
[1752631326826,5.16235383,117820.0,117810.0,0.01662748]
[1752631327909,5.14695383,117820.0,117810.0,0.01866748]
[1752631329195,5.14695383,117820.0,117810.0,0.01662748]
[1752631330023,5.49319814,117820.0,117810.0,0.01662748]
[1752631330221,5.49319814,117820.0,117810.0,0.01866748]
[1752631330896,5.14695383,117820.0,117810.0,0.01866748]
[1752631331966,5.49319814,117820.0,117810.0,0.01866748]
[1752631332204,5.49315814,117820.0,117810.0,0.01866748]
[1752631333466,5.49315814,117820.0,117810.0,0.01662748]
[1752631334111,5.36163814,117820.0,117810.0,0.01662748]
[1752631335658,5.39193814,117820.0,117810.0,0.01662748]
[1752631338258,5.52345814,117820.0,117810.0,0.01662748]
[1752631339975,5.60921776,117820.0,117810.0,0.01662748]
[1752631342667,5.52345814,117820.0,117810.0,0.01662748]
[1752631343845,5.17721383,117820.0,117810.0,0.01662748]
[1752631344059,5.52345814,117820.0,117810.0,0.01662748]
[1752631346006,1.03354214,117820.0,117810.0,0.01662748]
[1752631346222,5.52345814,117820.0,117810.0,0.01662748]
[1752631352718,5.17721383,117820.0,117810.0,0.01662748]
[1752631352927,5.52345814,117820.0,117810.0,0.01662748]
[1752631354928,5.50835814,117820.0,117810.0,0.01662748]
[1752631355600,4.84889067,117820.0,117810.0,0.23949818]
[1752631355819,0.002,117820.0,117810.0,0.77512632]
[1752631356034,0.002,117820.0,117810.0,0.8606366]
[1752631356672,0.01048687,117820.0,117810.0,0.8606366]
[1752631357096,0.002,117820.0,117810.0,0.8606366]
[1752631357311,0.01048687,117820.0,117810.0,0.8606366]
[1752631357595,0.01048687,117820.0,117810.0,0.46497684]
[1752631357596,0.2056988,117820.0,117810.0,0.46497684]
[1752631357810,0.03594834,117820.0,117810.0,0.47346457]
[1752631358240,0.2056988,117820.0,117810.0,0.31652087]
[1752631358460,0.18872535,117820.0,117810.0,0.05275748]
[1752631358676,0.18872535,117820.0,117810.0,0.01865748]
[1752631358677,0.56597513,117820.0,117810.0,0.01865748]
[1752631358890,0.56597513,117820.0,117810.0,0.15049748]
[1752631359310,0.56597513,117820.0,117810.0,0.14850748]
[1752631359525,0.59667513,117820.0,117810.0,0.14850748]
[1752631359729,0.59667513,117820.0,117810.0,0.14858748]
[1752631360198,0.57070966,117820.0,117810.0,0.14858748]
[1752631361322,5.06062566,117820.0,117810.0,0.01662748]
[1752631361562,5.06062566,117820.0,117810.0,0.14854748]
[1752631362017,5.06062566,117820.0,117810.0,0.01662748]
[1752631362238,5.06062566,117820.0,117810.0,0.14854748]
[1752631363826,5.06062566,117820.0,117810.0,0.13017677]
[1752631365157,0.20373382,117800.0,117790.0,0.22087204]
[1752631365353,0.20373382,117800.0,117790.0,0.4283544]
[1752631365543,0.19524551,117800.0,117790.0,0.4283544]
[1752631366345,0.19924551,117800.0,117790.0,0.4293544]
[1752631366941,0.53700129,117800.0,117790.0,0.21541331]
[1752631367148,0.17377928,117800.0,117790.0,0.3387637]
[1752631367343,0.17377928,117800.0,117790.0,0.34725338]
[1752631367749,0.17377928,117800.0,117790.0,0.35574299]
[1752631368114,0.17377928,117800.0,117790.0,0.4193345]
[1752631369519,0.17377928,117800.0,117790.0,0.41084496]
[1752631370468,0.17377928,117800.0,117790.0,0.4193345]
[1752631370674,0.17377928,117800.0,117790.0,0.42782396]
[1752631371077,0.1907567,117800.0,117790.0,0.43631271]
[1752631371284,0.19924559,117800.0,117790.0,0.41933428]
[1752631371499,0.19075699,117800.0,117790.0,0.34725331]
[1752631371710,0.19075699,117800.0,117790.0,0.35574285]
[1752631372132,0.18226817,117800.0,117790.0,0.36423231]
[1752631372336,0.18226817,117800.0,117790.0,0.35574285]
[1752631372544,0.54086359,117800.0,117790.0,0.001]
[1752631372791,0.55706359,117800.0,117790.0,0.001]
[1752631372990,5.04697959,117800.0,117790.0,0.1328]
[1752631374841,5.01497959,117800.0,117790.0,0.16674877]
[1752631375074,5.01203959,117800.0,117790.0,0.16674877]
[1752631375894,4.66579528,117800.0,117790.0,0.16674877]
[1752631376733,4.66579528,117800.0,117790.0,0.13479]
[1752631377349,4.66873528,117800.0,117790.0,0.13479]
[1752631377555,5.01497959,117800.0,117790.0,0.13276]
[1752631379097,5.01497959,117800.0,117790.0,0.13479]
[1752631381697,5.01497959,117800.0,117790.0,0.13276]
[1752631383095,5.01497959,117800.0,117790.0,0.16586389]
[1752631383557,5.01497959,117800.0,117790.0,0.13276]
[1752631384285,5.03127959,117800.0,117790.0,0.13276]
[1752631385106,4.68503528,117800.0,117790.0,0.13276]
[1752631385311,5.03127959,117800.0,117790.0,0.13276]
[1752631386715,0.54136359,117800.0,117790.0,0.13276]
[1752631386957,0.54136359,117800.0,117790.0,0.16671283]
[1752631387358,0.19511928,117800.0,117790.0,0.16671283]
[1752631387570,0.54136359,117800.0,117790.0,0.16671283]
[1752631388410,0.52506359,117800.0,117790.0,0.16671283]
[1752631388639,0.52506359,117800.0,117790.0,0.16882283]
[1752631388848,0.52212359,117800.0,117790.0,0.16882283]
[1752631389068,0.17587928,117800.0,117790.0,0.16882283]
[1752631389518,0.17587928,117800.0,117790.0,0.03706283]
[1752631389519,0.17377928,117800.0,117790.0,0.03706283]
[1752631389714,0.1822681,117800.0,117790.0,0.38223607]
[1752631389935,0.1822681,117800.0,117790.0,0.72848038]
[1752631390139,0.1822681,117800.0,117790.0,0.38223607]
[1752631390364,0.1822681,117800.0,117790.0,0.39072553]
[1752631390777,0.1822681,117800.0,117790.0,0.39921492]
[1752631390975,0.1822681,117800.0,117790.0,0.39072553]
[1752631391199,0.17377928,117800.0,117790.0,0.17]
[1752631394807,0.17377928,117800.0,117790.0,0.3397937]
[1752631395136,0.17377928,117800.0,117790.0,0.17]
[1752631395350,0.0294658,117800.0,117790.0,0.1537]
[1752631395552,0.0294658,117800.0,117790.0,0.34047284]
[1752631396071,0.0294658,117800.0,117790.0,0.43472185]
[1752631396302,0.0294658,117800.0,117790.0,0.44321117]
[1752631396556,0.0294658,117800.0,117790.0,0.43472185]
[1752631396777,0.004,117800.0,117790.0,0.4595111]
[1752631397010,0.02097676,117800.0,117790.0,0.46800028]
[1752631397218,0.004,117800.0,117790.0,0.46800028]
[1752631397427,0.01248831,117800.0,117790.0,0.46800028]
[1752631397635,0.004,117800.0,117790.0,0.46800028]
[1752631398866,0.004,117800.0,117790.0,0.62076606]
[1752631399318,0.01248838,117800.0,117790.0,0.62076606]
[1752631399876,0.0314858,117800.0,117790.0,0.45742948]
[1752631400080,0.0314858,117800.0,117790.0,0.47440862]
[1752631400285,0.0314858,117800.0,117790.0,0.46591916]
[1752631400438,0.38085011,117800.0,117790.0,0.32164292]
[1752631400644,0.38085011,117800.0,117790.0,0.33013238]
[1752631400842,0.38085011,117800.0,117790.0,0.39201442]
[1752631401042,0.57561835,117800.0,117790.0,0.3025537]
[1752631401244,0.59061835,117800.0,117790.0,0.31104338]
[1752631401441,0.59061835,117800.0,117790.0,0.31953292]
[1752631401636,0.57561835,117800.0,117790.0,0.31953292]
[1752631402447,0.22937404,117800.0,117790.0,0.31953292]
[1752631402650,0.39735011,117800.0,117790.0,0.39572397]
[1752631402828,0.405839,117800.0,117790.0,0.39572397]
[1752631404044,0.05959469,117800.0,117790.0,0.39572397]
[1752631404328,0.06808365,117800.0,117790.0,0.38723451]
[1752631404690,0.06808365,117800.0,117790.0,0.39572397]
[1752631405260,0.05959469,117800.0,117790.0,0.39572397]
[1752631405451,0.05959469,117800.0,117790.0,0.40421336]
[1752631405673,0.04309469,117800.0,117790.0,0.27245336]
[1752631405829,0.04309469,117800.0,117790.0,0.40620336]
[1752631406041,0.20438559,117800.0,117790.0,0.1707937]
[1752631406251,0.39645098,117800.0,117790.0,0.3024337]
[1752631406617,0.56623026,117800.0,117790.0,0.31092324]
[1752631406821,0.21998595,117800.0,117790.0,0.3194127]
[1752631407211,0.21998595,117800.0,117790.0,0.31092324]
[1752631407657,0.20438595,117800.0,117790.0,0.38072283]
[1752631408205,0.22088595,117800.0,117790.0,0.38072283]
[1752631408434,0.22088595,117800.0,117790.0,0.3024337]
[1752631408645,0.22088595,117800.0,117790.0,0.3194127]
[1752631408846,0.22088595,117800.0,117790.0,0.32790209]
[1752631409198,0.22088595,117800.0,117790.0,0.3194127]
[1752631409615,0.22088595,117800.0,117790.0,0.31092331]
[1752631410041,0.23688595,117800.0,117790.0,0.36928469]
[1752631410253,0.23688595,117800.0,117790.0,0.36928476]
[1752631410468,0.57464144,117800.0,117790.0,0.001]
[1752631410654,0.57464144,117800.0,117790.0,0.13264]
[1752631410862,0.70628144,117800.0,117790.0,0.13264]
[1752631411066,0.36003713,117800.0,117790.0,0.13264]
[1752631411268,0.79179172,117800.0,117790.0,0.001]
[1752631411474,5.28170772,117800.0,117790.0,0.001]
[1752631411676,0.79179172,117800.0,117790.0,0.001]
[1752631412084,5.62170772,117800.0,117790.0,0.001]
[1752631412492,5.62170772,117800.0,117780.0,0.13164]
[1752631412493,0.20998324,117790.0,117780.0,0.13164]
[1752631412713,0.20998324,117790.0,117780.0,0.1448307]
[1752631412714,5.05129355,117790.0,117780.0,0.1448307]
[1752631412909,0.56137755,117790.0,117780.0,0.13164]
[1752631413328,0.56999007,117790.0,117780.0,0.13164]
[1752631414122,0.57199007,117790.0,117780.0,0.13264]
[1752631414764,0.57199007,117790.0,117780.0,0.001]
[1752631416908,0.91199007,117790.0,117780.0,0.001]
[1752631417500,5.48741635,117790.0,117780.0,0.001]
[1752631418744,0.17829837,117780.0,117770.0,0.000267]
[1752631418954,5.18166868,117780.0,117770.0,0.000267]
[1752631419160,0.69175268,117780.0,117770.0,0.000267]
[1752631419954,0.69175268,117780.0,117770.0,0.00031771]
[1752631420169,0.69375268,117780.0,117770.0,0.00131771]
[1752631422853,0.77926296,117780.0,117770.0,0.00131771]
[1752631424233,1.20502258,117780.0,117770.0,0.00131771]
[1752631424451,5.69493858,117780.0,117770.0,0.00131771]
[1752631424648,5.60917896,117780.0,117770.0,0.00131771]
[1752631425450,5.60717896,117780.0,117770.0,0.00031771]
[1752631425893,5.60917896,117780.0,117770.0,0.00131771]
[1752631426095,5.60717896,117780.0,117770.0,0.00031771]
[1752631426477,5.60917896,117780.0,117770.0,0.00131771]
[1752631427089,5.69493858,117780.0,117770.0,0.00131771]
[1752631427291,5.63514443,117780.0,117770.0,0.00131771]
[1752631428120,5.64968528,117780.0,117770.0,0.00131771]
[1752631429300,5.64768528,117780.0,117770.0,0.00031771]
[1752631429504,5.64968528,117780.0,117770.0,0.00131771]
[1752631434464,1.15976928,117780.0,117770.0,0.00131771]
[1752631434679,5.64968528,117780.0,117770.0,0.00131771]
[1752631437136,5.7354449,117780.0,117770.0,0.00131771]
[1752631437462,5.64968528,117780.0,117770.0,0.00131771]
[1752631439098,1.3145496,117760.0,117750.0,0.00233]
[1752631439312,6.02372588,117760.0,117750.0,0.00238065]
[1752631439521,6.04969135,117760.0,117750.0,0.00238065]
[1752631439759,6.05276135,117760.0,117750.0,0.00238065]
[1752631439971,5.89519588,117760.0,117750.0,0.00238065]
[1752631440185,5.63051157,117760.0,117750.0,0.00238065]
[1752631440401,5.14016641,117760.0,117750.0,0.00338065]
[1752631440616,5.61797072,117760.0,117750.0,0.00338065]
[1752631440823,5.60237072,117760.0,117750.0,0.00338065]
[1752631441292,5.96401503,117760.0,117750.0,0.00338065]
[1752631441744,0.0161,117720.0,117710.0,1e-08]
[1752631441967,0.00849747,117680.0,117670.0,0.0002]
[1752631442198,0.86470935,117670.0,117650.0,0.0002]
[1752631442418,0.89146921,117670.0,117660.0,0.0002]
[1752631442658,0.89146921,117670.0,117660.0,0.00025071]
[1752631442659,5.42263969,117670.0,117660.0,0.00025071]
[1752631442893,5.1501458,117670.0,117660.0,0.00025071]
[1752631443117,5.10238815,117670.0,117660.0,0.00222071]
[1752631443328,0.0084979,117670.0,117660.0,0.20758977]
[1752631443571,0.16993797,117690.0,117670.0,0.17846519]
[1752631443761,0.03398931,117680.0,117670.0,0.22646129]
[1752631444025,0.02549169,117680.0,117670.0,0.30960508]
[1752631444243,0.17843479,117690.0,117670.0,0.30960508]
[1752631444244,0.00849646,117690.0,117680.0,0.22684432]
[1752631444468,0.02548938,117690.0,117680.0,0.71635574]
[1752631444680,0.16992353,117700.0,117690.0,0.20392439]
[1752631444681,0.0169917,117700.0,117690.0,0.20392439]
[1752631444892,0.21240258,117700.0,117690.0,0.231588]
[1752631445110,0.20390706,117700.0,117690.0,0.45014762]
[1752631445320,0.18691551,117700.0,117690.0,0.13776]
[1752631445538,0.18691551,117700.0,117690.0,0.00197]
[1752631445751,0.18691551,117700.0,117690.0,0.13485]
[1752631445955,0.18891551,117700.0,117690.0,0.13485]
[1752631446390,0.18891551,117700.0,117690.0,0.00197]
[1752631446610,0.18891551,117700.0,117690.0,0.13481]
[1752631446826,0.18891551,117700.0,117690.0,0.14859]
[1752631447465,0.19106551,117700.0,117690.0,0.00197]
[1752631447692,0.53288256,117700.0,117690.0,0.13308]
[1752631448770,0.52774256,117700.0,117690.0,0.00197]
[1752631448990,0.52974256,117700.0,117690.0,0.13509]
[1752631449410,0.52974256,117700.0,117690.0,0.00197]
[1752631449625,0.52974256,117700.0,117690.0,0.13509]
[1752631450081,0.52974256,117700.0,117690.0,0.13517]
[1752631450293,0.53288256,117700.0,117690.0,0.00197]
[1752631450532,0.18696104,117680.0,117670.0,0.00299]
[1752631450755,0.18696104,117680.0,117670.0,0.00496]
[1752631450956,0.18696104,117680.0,117670.0,0.13816]
[1752631451518,0.18696104,117680.0,117670.0,0.00496]
[1752631452078,0.18696104,117680.0,117670.0,0.13812]
[1752631452701,0.19096104,117680.0,117670.0,0.13812]
[1752631453150,0.18696104,117680.0,117670.0,0.03919469]
[1752631453356,0.01699278,117690.0,117680.0,0.01699451]
[1752631453564,0.195428,117690.0,117680.0,0.01046762]
[1752631453799,0.195428,117690.0,117680.0,0.19190757]
[1752631454016,0.01699314,117690.0,117680.0,0.21739948]
[1752631454237,0.19542786,117690.0,117680.0,0.26437447]
[1752631454444,0.1869314,117690.0,117680.0,0.20040504]
[1752631455272,0.1889314,117690.0,117680.0,0.20040504]
[1752631455489,0.1889314,117690.0,117680.0,0.13316]
[1752631455490,0.51911177,117690.0,117680.0,0.13316]
[1752631455698,0.51590502,117690.0,117680.0,0.13316]
[1752631456134,0.18696317,117670.0,117660.0,0.00324071]
[1752631456319,0.18696317,117670.0,117660.0,0.00521071]
[1752631456580,0.53093022,117670.0,117660.0,0.13341071]
[1752631457535,0.53093022,117670.0,117660.0,0.00025071]
[1752631457735,0.53093022,117670.0,117660.0,0.13337071]
[1752631458162,1.03539438,117670.0,117660.0,0.00025071]
[1752631458340,5.55277803,117670.0,117660.0,0.00025071]
[1752631458542,5.4463565,117670.0,117660.0,0.00025071]
[1752631458742,5.4483565,117670.0,117660.0,0.00025071]
[1752631460453,0.18896317,117670.0,117660.0,0.15544861]
[1752631460663,0.01049776,117670.0,117660.0,0.34242723]
[1752631460788,0.002,117670.0,117660.0,0.37532723]
[1752631460992,0.01899574,117670.0,117660.0,0.46108685]
[1752631461196,0.02749386,117670.0,117660.0,0.44458685]
[1752631461620,0.01899574,117670.0,117660.0,0.44458685]
[1752631462036,0.01049776,117670.0,117660.0,0.44458685]
[1752631462257,0.01899574,117670.0,117660.0,0.44458685]
[1752631462458,0.02749386,117670.0,117660.0,0.35882723]
[1752631462687,0.03599205,117670.0,117660.0,0.35882723]
[1752631463397,0.21445724,117670.0,117660.0,0.18369107]
[1752631463593,0.18896338,117670.0,117660.0,0.00222071]
[1752631463805,0.19111338,117670.0,117660.0,0.13546071]
[1752631464868,0.18896338,117670.0,117660.0,0.33664379]
[1752631465574,0.18896338,117670.0,117660.0,0.34514263]
[1752631466103,0.01049783,117670.0,117660.0,0.36512981]
[1752631466286,0.01049783,117670.0,117660.0,0.13349071]
[1752631466287,0.18896302,117670.0,117660.0,0.13349071]
[1752631466517,5.02284607,117670.0,117660.0,0.00025071]
[1752631466890,5.36284607,117670.0,117660.0,0.13341071]
[1752631468111,5.02416902,117670.0,117660.0,0.13341071]
[1752631468601,5.02416902,117670.0,117660.0,0.00025071]
[1752631468802,5.02416902,117670.0,117660.0,0.13337071]
[1752631469053,0.53425302,117670.0,117660.0,0.13337071]
[1752631469283,5.02416902,117670.0,117660.0,0.13337071]
[1752631472076,5.44835635,117670.0,117660.0,0.00025071]
[1752631472225,5.44835635,117670.0,117660.0,0.13321071]
[1752631472434,5.46435635,117670.0,117660.0,0.13321071]
[1752631473787,5.491824,117670.0,117660.0,0.00025071]
[1752631474226,5.46435635,117670.0,117660.0,0.00025071]
[1752631474432,5.491824,117670.0,117660.0,0.00025071]
[1752631474663,5.57758362,117670.0,117660.0,0.00025071]
[1752631475686,5.491824,117670.0,117660.0,0.00025071]
[1752631477750,5.507424,117670.0,117660.0,0.00025071]
[1752631478171,5.47995635,117670.0,117660.0,0.00025071]
[1752631478799,5.47795635,117670.0,117660.0,0.00025071]
[1752631479363,5.505424,117670.0,117660.0,0.00025071]
[1752631479576,5.72610362,117670.0,117660.0,0.00025071]
[1752631480859,5.38742657,117670.0,117660.0,0.00025071]
[1752631481137,5.72610362,117670.0,117660.0,0.00025071]
[1752631482593,5.74064447,117670.0,117660.0,0.00025071]
[1752631483227,5.74404847,117670.0,117660.0,0.00025071]
[1752631484392,5.61267635,117670.0,117660.0,0.00025071]
[1752631484602,5.63944212,117670.0,117660.0,0.00025071]
[1752631484811,0.54885727,117660.0,117650.0,0.0002]
[1752631485010,5.25916355,117660.0,117650.0,0.00070773]
[1752631485140,5.28887932,117660.0,117650.0,0.00070773]
[1752631485496,5.37463894,117660.0,117650.0,0.00070773]
[1752631485809,5.28887932,117660.0,117650.0,0.00070773]
[1752631486253,5.29087932,117660.0,117650.0,0.00070773]
[1752631487624,0.80096332,117660.0,117650.0,0.00070773]
[1752631487951,5.29087932,117660.0,117650.0,0.00070773]
[1752631488161,5.30542017,117660.0,117650.0,0.00070773]
[1752631488365,5.39081788,117660.0,117650.0,0.00070773]
[1752631488974,5.39941336,117660.0,117650.0,0.00070773]
[1752631490014,5.3730095,117660.0,117650.0,0.00070773]
[1752631490219,5.28724988,117660.0,117650.0,0.00070773]
[1752631490443,5.31365374,117660.0,117650.0,0.00070773]